[Event "GER-ch Youth-U12 2022"]
[Site "Willingen"]
[Date "2022.06.08"]
[Round "6.1"]
[White "Dordevic, Tom"]
[Black "Stichter, Constantin Paul"]
[Result "0-1"]
[ECO "E03"]
[WhiteElo "1771"]
[BlackElo "1472"]
[Annotator "NA RC COMBH"]
[PlyCount "106"]
[EventDate "2022.06.05"]
[EventType "swiss"]
[EventRounds "9"]
[EventCountry "GER"]
[SourceTitle "playchess.com"]
[Source "ChessBase"]
[SourceQuality "1"]
[TimeControl "40/4500+30:900+30"]

1. Nf3 {[%emt 0:00:00]} d5 {[%emt 0:00:00]} 2. g3 {[%emt 0:00:00]} Nd7 {[%emt 0:00:00]} 3. d4 {[%emt 0:00:00]} Ngf6 {[%emt 0:00:00]} 4. c4 {[%emt 0:00:00]} dxc4 {[%emt 0:00:00]} 5. Qa4 {[%emt 0:00:00]} e6 {[%emt 0:00:00]} 6. Bg2 {[%emt 0:00:00]} a6 {[%emt 0:00:00]} 7. Qxc4 {[%emt 0:00:00]} b5 {[%emt 0:00:00]} 8. Qc2 {[%emt 0:00:00]} Bb7 {[%emt 0:00:00]} 9. O-O {[%emt 0:00:00]} c5 {[%emt 0:00:00]} 10. Bg5 {[%emt 0:00:00]} Rc8 {[%emt 0:00:49]} 11. Qd2 {[%emt 0:02:45]} Be7 {[%emt 0:00:57]} 12. Bxf6 {[%emt 0:05:40]} Bxf6 {[%emt 0:02:24]} 13. e3 {[%emt 0:01:04]} O-O {[%emt 0:03:00]} 14. Rd1 {[%emt 0:03:57]} cxd4 {[%emt 0:03:54]} 15. Nxd4 {[%emt 0:00:18]} Bxg2 {[%emt 0:00:20]} 16. Kxg2 {[%emt 0:00:06]} Ne5 {[%emt 0:00:46]} 17. Qe2 {[%emt 0:05:02]} Qb6 {[%emt 0:03:17]} 18. Nd2 {[%emt 0:01:52]} Nc4 {[%emt 0:07:51]} 19. Nxc4 {[%emt 0:09:58]} Rxc4 {[%emt 0:00:08]} 20. Nf3 {[%emt 0:00:20]} Rfc8 {[%emt 0:01:00]} 21. Rd2 {[%emt 0:00:35]} Qc6 {[%emt 0:02:17]} 22. Rad1 {[%emt 0:01:28]} Qe4 {[%emt 0:00:24]} 23. Rd3 {[%emt 0:05:42]} h6 {[%emt 0:00:46]} 24. R1d2 {[%emt 0:06:09]} Rc1 {[%emt 0:01:59]} 25. b3 {[%emt 0:05:36]} a5 {[%emt 0:01:22]} 26. Rd1 {[%emt 0:01:34]} g5 {[%emt 0:01:49]} 27. h3 {[%emt 0:03:15]} h5 {[%emt 0:03:25]} 28. Kh2 {[%emt 0:02:16]} R8c2 {[%emt 0:07:12]} 29. R3d2 {[%emt 0:01:05]} g4 {[%emt 0:01:00]} 30. Ng1 {[%emt 0:03:32]} b4 {[%emt 0:02:04]} 31. h4 {[%emt 0:05:22]} Rxd2 {[%emt 0:01:05]} 32. Qxd2 {[%emt 0:01:30]} Rc2 {[%emt 0:00:07]} 33. Qe1 {[%emt 0:00:09]} Bc3 {[%emt 0:00:35]} 34. Qf1 {[%emt 0:01:41]} Rxa2 {[%emt 0:00:07]} 35. Qg2 {[%emt 0:06:06]} Qxg2+ {[%emt 0:00:20]} 36. Kxg2 {[%emt 0:00:04]} Rb2 {[%emt 0:00:07]} 37. Rd8+ {[%emt 0:00:17]} Kg7 {[%emt 0:00:06]} 38. Ra8 {[%emt 0:00:07]} Be1 {[%emt 0:02:46]} 39. Ne2 {[%emt 0:08:49]} Rxe2 {[%emt 0:02:17]} 40. Kf1 {[%emt 0:00:04]} Rxf2+ {[%emt 0:00:08]} 41. Kxe1 {[%emt 0:15:03]} Rb2 {[%emt 0:15:15]} 42. Rxa5 {[%emt 0:00:08]} Rxb3 {[%emt 0:00:46]} 43. Rxh5 {[%emt 0:00:06]} Rxe3+ {[%emt 0:00:09]} 44. Kf2 {[%emt 0:00:05]} Rf3+ {[%emt 0:00:12]} 45. Kg2 {[%emt 0:00:05]} f5 {[%emt 0:00:07]} 46. Rg5+ {[%emt 0:00:47]} Kh7 {[%emt 0:00:05]} 47. Rh5+ {[%emt 0:00:04]} Kg7 {[%emt 0:01:04]} 48. Rg5+ {[%emt 0:00:03]} Kf7 {[%emt 0:00:15]} 49. Rh5 {[%emt 0:01:20]} b3 {[%emt 0:01:29]} 50. Rh7+ {[%emt 0:00:13]} Kg6 {[%emt 0:00:04]} 51. Rb7 {[%emt 0:00:04]} e5 {[%emt 0:00:04]} 52. Rb6+ {[%emt 0:00:15]} Kh5 {[%emt 0:00:11]} 53. Rb8 {[%emt 0:00:22]} Rc3 {[%emt 0:00:48]} 0-1

[Event "GER-ch Youth-U12 2022"]
[Site "Willingen"]
[Date "2022.06.08"]
[Round "6.2"]
[White "Lu, Yunong Elias"]
[Black "Nechitailo, Nikita"]
[Result "1/2-1/2"]
[ECO "B31"]
[WhiteElo "1671"]
[BlackElo "1371"]
[Annotator "NA RC COMBH"]
[PlyCount "120"]
[EventDate "2022.06.05"]
[EventType "swiss"]
[EventRounds "9"]
[EventCountry "GER"]
[SourceTitle "playchess.com"]
[Source "ChessBase"]
[SourceQuality "1"]
[TimeControl "40/4500+30:900+30"]

1. e4 {[%emt 0:00:00]} c5 {[%emt 0:00:00]} 2. Nf3 {[%emt 0:00:00]} Nc6 {[%emt 0:00:00]} 3. Bb5 {[%emt 0:00:00]} g6 {[%emt 0:00:00]} 4. Bxc6 {[%emt 0:00:00]} dxc6 {[%emt 0:00:00]} 5. d3 {[%emt 0:00:00]} Bg7 {[%emt 0:00:00]} 6. h3 {[%emt 0:00:00]} e5 {[%emt 0:00:00]} 7. Nbd2 {[%emt 0:00:00]} Qc7 {[%emt 0:00:00]} 8. a4 {[%emt 0:00:00]} Nf6 {[%emt 0:00:00]} 9. Nc4 {[%emt 0:02:01]} Nd7 {[%emt 0:00:00]} 10. Be3 {[%emt 0:03:59]} b6 {[%emt 0:02:43]} 11. b3 {[%emt 0:03:49]} Nf8 {[%emt 0:03:33]} 12. Qd2 {[%emt 0:07:53]} Ne6 {[%emt 0:05:25]} 13. O-O {[%emt 0:05:23]} Nd4 {[%emt 0:03:28]} 14. Bxd4 {[%emt 0:04:01]} cxd4 {[%emt 0:00:38]} 15. Nh2 {[%emt 0:06:06]} Be6 {[%emt 0:01:28]} 16. c3 {[%emt 0:07:38]} Bxc4 {[%emt 0:15:13]} 17. bxc4 {[%emt 0:03:12]} dxc3 {[%emt 0:01:50]} 18. Qxc3 {[%emt 0:01:54]} O-O {[%emt 0:01:29]} 19. a5 {[%emt 0:05:56]} Qd6 {[%emt 0:08:41]} 20. axb6 {[%emt 0:02:58]} axb6 {[%emt 0:01:34]} 21. Rfb1 {[%emt 0:02:24]} Rxa1 {[%emt 0:06:25]} 22. Rxa1 {[%emt 0:03:19]} Rd8 {[%emt 0:00:26]} 23. Ra3 {[%emt 0:04:05]} Bf8 {[%emt 0:02:23]} 24. Rb3 {[%emt 0:00:30]} Qc7 {[%emt 0:03:40]} 25. Ng4 {[%emt 0:03:19]} Rd4 {[%emt 0:03:59]} 26. Kh2 {[%emt 0:06:53]} Bc5 {[%emt 0:04:26]} 27. Qd2 {[%emt 0:03:15]} Qd6 {[%emt 0:08:32]} 28. Qg5 {[%emt 0:02:07]} Qe6 {[%emt 0:10:41]} 29. g3 {[%emt 0:03:36]} Rd6 {[%emt 0:01:46]} 30. Kg2 {[%emt 0:03:05]} f6 {[%emt 0:00:01]} 31. Qc1 {[%emt 0:01:13]} h5 {[%emt 0:00:17]} 32. Nh2 {[%emt 0:00:21]} Kh7 {[%emt 0:00:55]} 33. Nf3 {[%emt 0:00:59]} Rd7 {[%emt 0:01:12]} 34. Qa1 {[%emt 0:01:03]} b5 {[%emt 0:00:12]} 35. Rc3 {[%emt 0:00:49]} Ra7 {[%emt 0:00:12]} 36. Qb1 {[%emt 0:00:28]} b4 {[%emt 0:00:21]} 37. Rb3 {[%emt 0:00:28]} Qd7 {[%emt 0:00:36]} 38. Qb2 {[%emt 0:00:35]} Ra5 {[%emt 0:01:37]} 39. Qb1 {[%emt 0:00:56]} Qa7 {[%emt 0:00:06]} 40. Rb2 {[%emt 0:00:24]} Ra1 {[%emt 0:00:49]} 41. Qc2 {[%emt 0:15:16]} Qa4 {[%emt 0:15:37]} 42. Qxa4 {[%emt 0:00:00]} Rxa4 {[%emt 0:00:00]} 43. Kf1 {[%emt 0:00:00]} Kg7 {[%emt 0:00:00]} 44. Ke2 {[%emt 0:00:00]} g5 {[%emt 0:00:00]} 45. g4 {[%emt 0:00:00]} h4 {[%emt 0:00:00]} 46. Nd2 {[%emt 0:00:00]} Bd4 {[%emt 0:00:00]} 47. Rb1 {[%emt 0:00:00]} Ra2 {[%emt 0:00:00]} 48. Rd1 {[%emt 0:00:00]} Bc3 {[%emt 0:00:00]} 49. Ke3 {[%emt 0:00:00]} Bxd2+ {[%emt 0:00:00]} 50. Rxd2 {[%emt 0:00:00]} Rxd2 {[%emt 0:00:00]} 51. Kxd2 {[%emt 0:00:00]} c5 {[%emt 0:00:00]} 52. Kc2 {[%emt 0:00:00]} Kf7 {[%emt 0:00:00]} 53. Kb3 {[%emt 0:00:00]} Ke6 {[%emt 0:00:00]} 54. Kb2 {[%emt 0:00:00]} Kd6 {[%emt 0:00:00]} 55. Kb3 {[%emt 0:00:00]} Kc6 {[%emt 0:00:00]} 56. Kb2 {[%emt 0:00:00]} Kb6 {[%emt 0:00:00]} 57. Kb3 {[%emt 0:00:00]} Ka5 {[%emt 0:00:00]} 58. f3 {[%emt 0:00:00]} Kb6 {[%emt 0:00:00]} 59. Kb2 {[%emt 0:00:00]} Ka5 {[%emt 0:00:00]} 60. Kb3 {[%emt 0:00:00]} Kb6 {[%emt 0:00:00]} 1/2-1/2

[Event "GER-ch Youth-U12 2022"]
[Site "Willingen"]
[Date "2022.06.08"]
[Round "6.3"]
[White "Blodig, Vincent"]
[Black "Korchynskyi, Mykola"]
[Result "0-1"]
[ECO "C02"]
[WhiteElo "1461"]
[BlackElo "1723"]
[Annotator "NA RC COMBH"]
[PlyCount "76"]
[EventDate "2022.06.05"]
[EventType "swiss"]
[EventRounds "9"]
[EventCountry "GER"]
[SourceTitle "playchess.com"]
[Source "ChessBase"]
[SourceQuality "1"]
[TimeControl "40/4500+30:900+30"]

1. e4 {[%emt 0:00:00]} e6 {[%emt 0:00:00]} 2. d4 {[%emt 0:00:00]} d5 {[%emt 0:00:00]} 3. e5 {[%emt 0:00:00]} c5 {[%emt 0:00:00]} 4. c3 {[%emt 0:00:00]} Nc6 {[%emt 0:00:00]} 5. Nf3 {[%emt 0:00:00]} Qb6 {[%emt 0:00:00]} 6. a3 {[%emt 0:00:00]} Nh6 {[%emt 0:00:00]} 7. b4 {[%emt 0:00:00]} cxd4 {[%emt 0:00:00]} 8. cxd4 {[%emt 0:00:00]} Nf5 {[%emt 0:00:00]} 9. Be3 {[%emt 0:00:00]} f6 {[%emt 0:00:00]} 10. exf6 {[%emt 0:00:00]} gxf6 {[%emt 0:00:00]} 11. Bd3 {[%emt 0:00:00]} Nxe3 {[%emt 0:00:00]} 12. fxe3 {[%emt 0:00:00]} Bh6 {[%emt 0:00:00]} 13. Qe2 {[%emt 0:00:00]} O-O {[%emt 0:00:00]} 14. Nc3 {[%emt 0:00:00]} Bd7 {[%emt 0:00:00]} 15. O-O {[%emt 0:00:00]} Rf7 {[%emt 0:05:48]} 16. Na4 {[%emt 0:03:46]} Qc7 {[%emt 0:10:12]} 17. Rac1 {[%emt 0:01:48]} Qd6 {[%emt 0:00:45]} 18. Nc5 {[%emt 0:01:15]} Raf8 {[%emt 0:00:45]} 19. Nh4 {[%emt 0:05:17]} Bc8 {[%emt 0:02:14]} 20. Rf3 {[%emt 0:10:50]} Nxd4 {[%emt 0:02:11]} 21. exd4 {[%emt 0:01:56]} Bxc1 {[%emt 0:00:05]} 22. Rh3 {[%emt 0:02:22]} Rg7 {[%emt 0:09:38]} 23. Qh5 {[%emt 0:11:48]} Qf4 {[%emt 0:07:27]} 24. Nf3 {[%emt 0:11:22]} h6 {[%emt 0:00:47]} 25. Kh1 {[%emt 0:01:29]} e5 {[%emt 0:01:15]} 26. Rh4 {[%emt 0:01:37]} Bg4 {[%emt 0:00:50]} 27. Rxg4 {[%emt 0:00:29]} Qxg4 {[%emt 0:00:10]} 28. Qxg4 {[%emt 0:00:24]} Rxg4 {[%emt 0:00:01]} 29. Ne6 {[%emt 0:00:55]} e4 {[%emt 0:00:52]} 30. Nxf8 {[%emt 0:01:25]} exd3 {[%emt 0:00:01]} 31. Nd7 {[%emt 0:00:20]} d2 {[%emt 0:01:36]} 32. Nxf6+ {[%emt 0:01:11]} Kg7 {[%emt 0:00:08]} 33. Nxd2 {[%emt 0:00:56]} Rxd4 {[%emt 0:00:07]} 34. Nh5+ {[%emt 0:00:19]} Kg6 {[%emt 0:00:07]} 35. Nf1 {[%emt 0:00:36]} Kxh5 {[%emt 0:00:12]} 36. h3 {[%emt 0:00:23]} Rd1 {[%emt 0:00:10]} 37. g4+ {[%emt 0:00:13]} Kh4 {[%emt 0:00:13]} 38. Kg2 {[%emt 0:00:08]} Rxf1 {[%emt 0:00:03]} 0-1

[Event "GER-ch Youth-U12 2022"]
[Site "Willingen"]
[Date "2022.06.08"]
[Round "6.4"]
[White "Buchinger, Alexis"]
[Black "Freude, Paul"]
[Result "1-0"]
[ECO "B90"]
[WhiteElo "1676"]
[BlackElo "1415"]
[Annotator "NA RC COMBH"]
[PlyCount "81"]
[EventDate "2022.06.05"]
[EventType "swiss"]
[EventRounds "9"]
[EventCountry "GER"]
[SourceTitle "playchess.com"]
[Source "ChessBase"]
[SourceQuality "1"]
[TimeControl "40/4500+30:900+30"]

1. e4 {[%emt 0:00:00]} c5 {[%emt 0:00:00]} 2. Nf3 {[%emt 0:00:00]} d6 {[%emt 0:00:00]} 3. d4 {[%emt 0:00:00]} cxd4 {[%emt 0:00:00]} 4. Nxd4 {[%emt 0:00:00]} Nf6 {[%emt 0:00:00]} 5. Nc3 {[%emt 0:00:00]} a6 {[%emt 0:00:00]} 6. Bc4 {[%emt 0:00:00]} e5 {[%emt 0:00:00]} 7. Nb3 {[%emt 0:00:00]} b5 {[%emt 0:00:00]} 8. Bd5 {[%emt 0:00:00]} Nxd5 {[%emt 0:00:00]} 9. Nxd5 {[%emt 0:00:00]} Bb7 {[%emt 0:00:00]} 10. Be3 {[%emt 0:00:00]} Nd7 {[%emt 0:00:00]} 11. Qd2 {[%emt 0:00:00]} Bxd5 {[%emt 0:00:00]} 12. Qxd5 {[%emt 0:00:00]} Rc8 {[%emt 0:00:00]} 13. c3 {[%emt 0:00:00]} Nb6 {[%emt 0:00:00]} 14. Qb7 {[%emt 0:03:36]} Nc4 {[%emt 0:01:36]} 15. Qxa6 {[%emt 0:01:36]} Nxb2 {[%emt 0:03:35]} 16. Qxb5+ {[%emt 0:01:05]} Qd7 {[%emt 0:00:17]} 17. Qxd7+ {[%emt 0:00:19]} Kxd7 {[%emt 0:00:04]} 18. Bd2 {[%emt 0:05:22]} Na4 {[%emt 0:02:00]} 19. Rc1 {[%emt 0:01:05]} Nc5 {[%emt 0:03:20]} 20. Nxc5+ {[%emt 0:00:12]} dxc5 {[%emt 0:00:45]} 21. Rb1 {[%emt 0:00:25]} Ra8 {[%emt 0:01:30]} 22. Rb2 {[%emt 0:00:42]} c4 {[%emt 0:01:19]} 23. Ke2 {[%emt 0:01:14]} Bd6 {[%emt 0:02:56]} 24. Rhb1 {[%emt 0:01:03]} Ra3 {[%emt 0:01:27]} 25. g3 {[%emt 0:18:14]} Rha8 {[%emt 0:00:31]} 26. Rb7+ {[%emt 0:04:36]} Ke6 {[%emt 0:02:14]} 27. R1b6 {[%emt 0:02:24]} R3a6 {[%emt 0:07:41]} 28. Rxa6 {[%emt 0:04:34]} Rxa6 {[%emt 0:00:11]} 29. Rb2 {[%emt 0:00:43]} Kd7 {[%emt 0:04:54]} 30. Be3 {[%emt 0:04:49]} h6 {[%emt 0:04:10]} 31. f4 {[%emt 0:01:38]} Kc6 {[%emt 0:06:36]} 32. Kf3 {[%emt 0:05:01]} Ra3 {[%emt 0:01:25]} 33. Rc2 {[%emt 0:02:11]} exf4 {[%emt 0:03:27]} 34. gxf4 {[%emt 0:01:43]} g6 {[%emt 0:05:05]} 35. Bd4 {[%emt 0:01:11]} Ra5 {[%emt 0:04:29]} 36. Rb2 {[%emt 0:02:57]} Rb5 {[%emt 0:05:58]} 37. Rxb5 {[%emt 0:00:34]} Kxb5 {[%emt 0:00:05]} 38. e5 {[%emt 0:00:41]} Be7 {[%emt 0:00:45]} 39. Ke4 {[%emt 0:00:14]} Ka4 {[%emt 0:01:40]} 40. Kd5 {[%emt 0:00:24]} Ka3 {[%emt 0:00:18]} 41. Bc5+ {[%emt 0:15:17]} 1-0

[Event "GER-ch Youth-U12 2022"]
[Site "Willingen"]
[Date "2022.06.08"]
[Round "6.5"]
[White "Nemitz, Alfred"]
[Black "Neuhoff, Laertes"]
[Result "1/2-1/2"]
[ECO "D31"]
[WhiteElo "1611"]
[BlackElo "1990"]
[Annotator "TA"]
[PlyCount "44"]
[EventDate "2022.06.05"]
[EventType "swiss"]
[EventRounds "9"]
[EventCountry "GER"]
[SourceTitle "playchess.com"]
[Source "ChessBase"]
[SourceQuality "1"]
[TimeControl "40/4500+30:900+30"]

{[%evp 18,44,-32,-43,-41,-106,0,0,-2,-3,54,64,53,60,41,0,82,0,0,-30,290,286,276,240,242,107,99,100,75]} 1. d4 {[%emt 0:00:00]} d5 {[%emt 0:00:00]} 2. c4 {[%emt 0:00:00]} e6 {[%emt 0:00:00]} 3. Nc3 {[%emt 0:00:00]} c6 {[%emt 0:00:00]} 4. Nf3 {[%emt 0:00:00]} dxc4 {[%emt 0:00:00]} 5. a4 {[%emt 0:00:00]} Bb4 {[%emt 0:00:00]} 6. e4 {[%emt 0:00:00]} b5 {[%emt 0:00:00]} 7. Bd2 {[%emt 0:00:00][%cal Bc1d2,Bd2c3,Bc3b2][%mdl 32]} a5 {[%emt 0:00:00]} 8. axb5 {[%emt 0:00:00]} Bxc3 {[%emt 0:00:00]} 9. Bxc3 {[%emt 0:00:00]} cxb5 {[%emt 0:00:00]} 10. b3 {[%emt 0:00:00]} Nf6 {[%emt 0:00:58] D31: Queen's Gambit Declined: Semi-Slav without ...Nf6 (+ Marshall Gambit and Noteboom) and Exchange Variation lines without ...Nf6.} 11. Nd2 {[%emt 0:00:00]} ({Better is} 11. Bb2 $15) 11... Nc6 {[%emt 0:07:28] [#]} (11... Bb7 12. bxc4 b4) (11... Bb7 $1 $17 {And now ...b4 would win.} 12. bxc4 b4) 12. bxc4 $146 {[%emt 0:01:11]} ({Predecessor:} 12. d5 exd5 13. Bxf6 Qxf6 14. exd5 Nd4 15. Rc1 O-O 16. f3 Re8+ 17. Kf2 cxb3 18. Nxb3 Nxb3 19. Qxb3 Qd4+ {0-1 (19) Forbes,G-McLaren,B Vancouver 1987}) 12... b4 {[%emt 0:01:13] The position is equal.} 13. Bb2 {[%emt 0:00:44]} Nxd4 {[%emt 0:06:09]} (13... O-O $1 $11) 14. e5 $14 {[%emt 0:00:17]} Ng8 {[%emt 0:22:49]} 15. Ne4 $36 {[%emt 0:05:15][%mdl 2048] White fights for an advantage.} Nf5 {[%emt 0:11:09]} 16. g4 {[%emt 0:13:12]} Bb7 {[%emt 0:07:34]} (16... Qxd1+ $1 $11 17. Rxd1 Bb7) 17. Bg2 {[%emt 0:01:23] White is more active.} (17. Bd3 $1 $16 Kf8 18. gxf5 exf5 19. Ng3 Bxh1 20. Nxh1) 17... Qxd1+ $11 {[%emt 0:00:57]} 18. Rxd1 {[%emt 0:00:16] [#]} Ke7 $1 {[%emt 0:03:21][%mdl 8192]} 19. gxf5 $18 {[%emt 0:05:04]} exf5 {[%emt 0:00:10] [#]} 20. Nd6 {[%emt 0:12:46]} Bxg2 {[%emt 0:00:24] [#]} 21. Nxf5+ {[%emt 0:00:07]} (21. Rg1 $1 $18 {is the precise move to win.} Bf3 22. Nxf5+ Kf8 {[#]} 23. e6 $1) 21... Kf8 $16 {[%emt 0:04:58] White must now prevent ...Be4.} 22. Rg1 {[%emt 0:01:38][%mdl 1024] White has strong compensation.} Bh3 {[%emt 0:21:20] Weighted Error Value: White=0.39/Black=0.82} 1/2-1/2

[Event "GER-ch Youth-U12 2022"]
[Site "Willingen"]
[Date "2022.06.08"]
[Round "6.6"]
[White "Gloeckler, Christian"]
[Black "Herrmann, Arthur"]
[Result "1-0"]
[ECO "B18"]
[WhiteElo "1869"]
[BlackElo "1507"]
[Annotator "NA RC COMBH"]
[PlyCount "57"]
[EventDate "2022.06.05"]
[EventType "swiss"]
[EventRounds "9"]
[EventCountry "GER"]
[SourceTitle "playchess.com"]
[Source "ChessBase"]
[SourceQuality "1"]
[TimeControl "40/4500+30:900+30"]

1. e4 {[%emt 0:00:00]} c6 {[%emt 0:00:00]} 2. d4 {[%emt 0:00:00]} d5 {[%emt 0:00:00]} 3. Nd2 {[%emt 0:00:00]} dxe4 {[%emt 0:00:00]} 4. Nxe4 {[%emt 0:00:00]} Bf5 {[%emt 0:00:00]} 5. Ng3 {[%emt 0:00:00]} Bg6 {[%emt 0:00:00]} 6. Nh3 {[%emt 0:00:00]} h6 {[%emt 0:00:00]} 7. Nf4 {[%emt 0:00:00]} Bh7 {[%emt 0:00:00]} 8. Bc4 {[%emt 0:00:00]} e6 {[%emt 0:00:00]} 9. O-O {[%emt 0:00:00]} Bd6 {[%emt 0:13:39]} 10. Ngh5 {[%emt 0:00:00]} Bxf4 {[%emt 0:11:18]} 11. Bxf4 {[%emt 0:00:00]} Kf8 {[%emt 0:04:56]} 12. Be5 {[%emt 0:00:00]} Nf6 {[%emt 0:02:35]} 13. Nxf6 {[%emt 0:00:00]} gxf6 {[%emt 0:00:09]} 14. Bf4 {[%emt 0:00:00]} Bg6 {[%emt 0:02:34]} 15. c3 {[%emt 0:00:00]} Nd7 {[%emt 0:04:07]} 16. Bd3 {[%emt 0:03:13]} Kg7 {[%emt 0:08:48]} 17. Re1 {[%emt 0:02:57]} Re8 {[%emt 0:04:29]} 18. Qd2 {[%emt 0:03:36]} h5 {[%emt 0:01:42]} 19. Rad1 {[%emt 0:03:56]} Rc8 {[%emt 0:09:26]} 20. Qc2 {[%emt 0:10:25]} Qb6 {[%emt 0:03:43]} 21. Bc1 {[%emt 0:02:02]} c5 {[%emt 0:01:57]} 22. Qd2 {[%emt 0:01:40]} Rh8 {[%emt 0:01:07]} 23. Bxg6 {[%emt 0:03:51]} fxg6 {[%emt 0:00:38]} 24. dxc5 {[%emt 0:03:58]} Nxc5 {[%emt 0:00:17]} 25. b4 {[%emt 0:00:35]} Rcd8 {[%emt 0:07:06]} 26. bxc5 {[%emt 0:00:44]} Qxc5 {[%emt 0:00:39]} 27. Qe3 {[%emt 0:00:41]} Rxd1 {[%emt 0:01:42]} 28. Rxd1 {[%emt 0:00:08]} Qe7 {[%emt 0:02:04]} 29. Qd2 {[%emt 0:01:20]} 1-0

[Event "GER-ch Youth-U12 2022"]
[Site "Willingen"]
[Date "2022.06.08"]
[Round "6.7"]
[White "Zhuikov, Edgard"]
[Black "Aniol, Nico"]
[Result "1/2-1/2"]
[ECO "B14"]
[WhiteElo "1892"]
[BlackElo "1494"]
[Annotator "NA RC COMBH"]
[PlyCount "102"]
[EventDate "2022.06.05"]
[EventType "swiss"]
[EventRounds "9"]
[EventCountry "GER"]
[SourceTitle "playchess.com"]
[Source "ChessBase"]
[SourceQuality "1"]
[TimeControl "40/4500+30:900+30"]

1. e4 {[%emt 0:00:00]} c6 {[%emt 0:00:00]} 2. c4 {[%emt 0:00:00]} d5 {[%emt 0:00:00]} 3. cxd5 {[%emt 0:00:00]} cxd5 {[%emt 0:00:00]} 4. exd5 {[%emt 0:00:00]} Nf6 {[%emt 0:00:00]} 5. Nc3 {[%emt 0:00:00]} Nxd5 {[%emt 0:00:00]} 6. Bc4 {[%emt 0:00:00]} Nb6 {[%emt 0:00:00]} 7. Bb3 {[%emt 0:00:00]} Nc6 {[%emt 0:00:00]} 8. Nf3 {[%emt 0:00:00]} g6 {[%emt 0:00:00]} 9. d4 {[%emt 0:00:00]} Bg7 {[%emt 0:00:09]} 10. Be3 {[%emt 0:00:00]} O-O {[%emt 0:01:42]} 11. h3 {[%emt 0:00:00]} Na5 {[%emt 0:02:17]} 12. Bc2 {[%emt 0:00:00]} Nac4 {[%emt 0:00:42]} 13. Rb1 {[%emt 0:00:00]} Bd7 {[%emt 0:02:18]} 14. O-O {[%emt 0:00:00]} Bc6 {[%emt 0:01:53]} 15. Qe2 {[%emt 0:00:00]} Rc8 {[%emt 0:04:03]} 16. Bd3 {[%emt 0:00:00]} Bxf3 {[%emt 0:01:02]} 17. Qxf3 {[%emt 0:00:00]} Bxd4 {[%emt 0:00:18]} 18. Bxd4 {[%emt 0:00:00]} Qxd4 {[%emt 0:00:08]} 19. Bxc4 {[%emt 0:00:00]} Nxc4 {[%emt 0:00:10]} 20. Qxb7 {[%emt 0:00:00]} Qb6 {[%emt 0:07:29]} 21. Qxb6 {[%emt 0:00:00]} axb6 {[%emt 0:00:09]} 22. Nd5 {[%emt 0:00:00]} Rfe8 {[%emt 0:01:24]} 23. Rfe1 {[%emt 0:00:00]} Kf8 {[%emt 0:02:20]} 24. b3 {[%emt 0:00:00]} Na3 {[%emt 0:01:17]} 25. Rbc1 {[%emt 0:04:53]} Rxc1 {[%emt 0:01:54]} 26. Rxc1 {[%emt 0:00:58]} b5 {[%emt 0:02:35]} 27. Rd1 {[%emt 0:05:09]} Rd8 {[%emt 0:01:15]} 28. Ne3 {[%emt 0:00:48]} Rxd1+ {[%emt 0:00:39]} 29. Nxd1 {[%emt 0:00:26]} Nc2 {[%emt 0:02:01]} 30. a4 {[%emt 0:00:29]} bxa4 {[%emt 0:01:10]} 31. bxa4 {[%emt 0:00:17]} Ke8 {[%emt 0:00:12]} 32. Kf1 {[%emt 0:00:08]} Nd4 {[%emt 0:00:31]} 33. Ke1 {[%emt 0:00:25]} Kd7 {[%emt 0:00:26]} 34. Kd2 {[%emt 0:00:08]} Kc6 {[%emt 0:00:32]} 35. Kd3 {[%emt 0:02:18]} Ne6 {[%emt 0:00:26]} 36. Kc4 {[%emt 0:00:52]} Nf4 {[%emt 0:01:10]} 37. Ne3 {[%emt 0:00:10]} e6 {[%emt 0:01:57]} 38. h4 {[%emt 0:03:33]} h6 {[%emt 0:04:12]} 39. g3 {[%emt 0:00:27]} Nh3 {[%emt 0:03:05]} 40. Ng4 {[%emt 0:00:29]} Kb6 {[%emt 0:01:05]} 41. Nxh6 {[%emt 0:15:32]} Nxf2 {[%emt 0:16:10]} 42. Nxf7 {[%emt 0:00:07]} Ne4 {[%emt 0:00:19]} 43. g4 {[%emt 0:01:17]} Ka5 {[%emt 0:01:26]} 44. h5 {[%emt 0:01:57]} gxh5 {[%emt 0:00:08]} 45. gxh5 {[%emt 0:00:06]} Kxa4 {[%emt 0:00:19]} 46. h6 {[%emt 0:00:18]} Nf6 {[%emt 0:00:03]} 47. Kd4 {[%emt 0:00:11]} Kb5 {[%emt 0:00:07]} 48. Nd6+ {[%emt 0:01:22]} Kc6 {[%emt 0:00:25]} 49. Ne4 {[%emt 0:00:08]} e5+ {[%emt 0:00:20]} 50. Kd3 {[%emt 0:00:56]} Nh7 {[%emt 0:00:07]} 51. Nc3 {[%emt 0:00:24]} Kd6 {[%emt 0:00:07]} 1/2-1/2

[Event "GER-ch Youth-U12 2022"]
[Site "Willingen"]
[Date "2022.06.08"]
[Round "6.8"]
[White "Malinowsky, Levi"]
[Black "Kulkovets, Roman"]
[Result "1-0"]
[ECO "B11"]
[WhiteElo "1816"]
[BlackElo "1099"]
[Annotator "NA RC COMBH"]
[PlyCount "63"]
[EventDate "2022.06.05"]
[EventType "swiss"]
[EventRounds "9"]
[EventCountry "GER"]
[SourceTitle "playchess.com"]
[Source "ChessBase"]
[SourceQuality "1"]
[TimeControl "40/4500+30:900+30"]

1. e4 {[%emt 0:00:00]} c6 {[%emt 0:00:00]} 2. Nc3 {[%emt 0:00:00]} d5 {[%emt 0:00:00]} 3. Nf3 {[%emt 0:00:00]} dxe4 {[%emt 0:00:00]} 4. Nxe4 {[%emt 0:00:00]} Nf6 {[%emt 0:00:00]} 5. Qe2 {[%emt 0:00:00]} Nxe4 {[%emt 0:00:00]} 6. Qxe4 {[%emt 0:00:00]} Nd7 {[%emt 0:00:00]} 7. Bc4 {[%emt 0:00:00]} Nf6 {[%emt 0:00:00]} 8. Ne5 {[%emt 0:00:00]} e6 {[%emt 0:00:00]} 9. Qe2 {[%emt 0:00:00]} Bd6 {[%emt 0:00:00]} 10. d4 {[%emt 0:00:00]} h6 {[%emt 0:00:00]} 11. Bf4 {[%emt 0:00:00]} a6 {[%emt 0:00:00]} 12. c3 {[%emt 0:00:00]} b5 {[%emt 0:03:52]} 13. Bd3 {[%emt 0:00:00]} Qc7 {[%emt 0:00:07]} 14. h4 {[%emt 0:01:55]} Bb7 {[%emt 0:03:36]} 15. a4 {[%emt 0:18:00]} O-O-O {[%emt 0:12:41]} 16. Bg3 {[%emt 0:09:39]} Nd5 {[%emt 0:04:43]} 17. O-O {[%emt 0:10:11]} g5 {[%emt 0:00:23]} 18. axb5 {[%emt 0:06:03]} cxb5 {[%emt 0:00:32]} 19. c4 {[%emt 0:00:35]} Nb4 {[%emt 0:10:12]} 20. cxb5 {[%emt 0:02:57]} Nxd3 {[%emt 0:00:05]} 21. Nxd3 {[%emt 0:01:26]} Kb8 {[%emt 0:00:04]} 22. Rfc1 {[%emt 0:01:19]} Qb6 {[%emt 0:00:20]} 23. Bxd6+ {[%emt 0:03:35]} Rxd6 {[%emt 0:02:33]} 24. Rc5 {[%emt 0:05:51]} f6 {[%emt 0:02:55]} 25. bxa6 {[%emt 0:02:24]} Bxa6 {[%emt 0:00:22]} 26. Rca5 {[%emt 0:09:08]} Qb7 {[%emt 0:01:42]} 27. Qc2 {[%emt 0:01:04]} Bxd3 {[%emt 0:00:23]} 28. Qxd3 {[%emt 0:00:12]} Rd5 {[%emt 0:00:16]} 29. Rxd5 {[%emt 0:01:52]} Qxd5 {[%emt 0:00:16]} 30. Qa6 {[%emt 0:00:48]} Qb7 {[%emt 0:00:21]} 31. Qd6+ {[%emt 0:00:07]} Kc8 {[%emt 0:00:14]} 32. Rc1+ {[%emt 0:00:07]} 1-0